fUST/lending_fUST_20260703
["ID","MTS","AMOUNT","RATE_DAILY","PERIOD"]
[426966751,1783080650000,-500.0,0.00029041,7]
[426966756,1783080650000,-500.0,0.00029041,7]
[426966757,1783080650000,-500.0,0.00029041,7]
[426966754,1783080650000,-500.0,0.00029041,7]
[426966755,1783080650000,-500.0,0.00029041,7]
[426966780,1783080750000,200.0,0.00028163,120]
[426966782,1783080763000,200.41483766,0.00029034,120]
[426966783,1783080769000,176.34995174,0.00029034,120]
[426966784,1783080770000,176.34995174,0.00029034,120]
[426966785,1783080771000,176.34995174,0.00029034,120]
[426966786,1783080772000,176.34995174,0.00029034,120]
[426966787,1783080772000,176.34995174,0.00029034,120]
[426966788,1783080773000,176.34995174,0.00029034,120]
[426966789,1783080774000,176.34995174,0.00029034,120]
[426966790,1783080810000,200.0,0.00027839,120]
[426966792,1783080820000,181.24246677,8e-07,30]
[426966791,1783080820000,181.24246677,8e-07,30]
[426966798,1783080821000,181.24246677,7.8e-07,30]
[426966797,1783080821000,181.24246677,7.8e-07,30]
[426966795,1783080821000,181.24246677,7.9e-07,30]
[426966794,1783080821000,181.24246677,7.9e-07,30]
[426966793,1783080821000,181.24246677,8e-07,30]
[426966796,1783080821000,181.24246677,7.9e-07,30]
[426966799,1783080882000,500.0,0.000195,30]
[426966800,1783080889000,176.3499517,0.00029113,120]
[426966802,1783081108000,-181.46,0.000195,7]
[426966803,1783081118000,179.00953779,0.0001,30]
[426966804,1783081120000,295.0,0.0001,30]
[426966806,1783081161000,-202.83,0.000195,7]
[426966807,1783081216000,-202.83,0.000195,7]
[426966808,1783081246000,844.38,0.00029113,120]
[426966809,1783081554000,675.5,0.00029113,120]
[426966813,1783081749000,-130.76743502,0.00025143,7]
[426966812,1783081749000,-298.75347562,0.0002465,7]
[426967004,1783081838000,-114.82998933,0.00026498,3]
[426967000,1783081838000,-22.23256498,0.00025143,7]
[426967041,1783081838000,-694.1192183,0.00026998,2]
[426967047,1783081838000,-694.1192183,0.00026998,2]
[426967038,1783081838000,-165.32868359,0.00026998,2]
[426967034,1783081838000,-694.1192183,0.00026998,2]
[426967036,1783081838000,-528.79053471,0.00026998,2]
[426967044,1783081838000,-694.1192183,0.00026998,2]
[426967028,1783081838000,-183.77509548,0.00026998,2]
[426967032,1783081838000,-694.1192183,0.00026998,2]
[426967002,1783081838000,-153.0,0.00025882,7]
[426967030,1783081838000,-694.1192183,0.00026998,2]
[426967065,1783081838000,-35807.82773126,0.00027,2]
[426967063,1783081838000,-694.1192183,0.00026998,2]
[426967059,1783081838000,-694.1192183,0.00026998,2]
[426967055,1783081838000,-694.1192183,0.00026998,2]
[426967061,1783081838000,-694.1192183,0.00026998,2]
[426967049,1783081838000,-694.1192183,0.00026998,2]
[426967051,1783081838000,-694.1192183,0.00026998,2]
[426967053,1783081838000,-694.1192183,0.00026998,2]
[426967024,1783081838000,-45.17001067,0.00026498,3]
[426967057,1783081838000,-694.1192183,0.00026998,2]
[426967026,1783081838000,-153.0,0.00026622,7]
[426967254,1783081841000,-31242.63794949,0.00027,2]
[426967383,1783081842000,2037.939578,0.00028724,120]
[426967459,1783081843000,-158121.74811764,0.00027,2]
[426967504,1783081850000,540.41,0.00029113,120]
[426967508,1783081887000,165.234187,0.00026127,120]
[426967509,1783081920000,2618.729673,0.0002868,120]
[426967517,1783082148000,432.32,0.00029111,120]
[426967518,1783082181000,-411.16414499,0.0002465,7]
[426967519,1783082235000,-411.16414499,0.00025143,7]
[426967520,1783082288000,-179.00953779,0.00025282,2]
[426967521,1783082341000,-639.41,0.00025308,2]
[426967522,1783082352000,-426.26,0.00025308,2]
[426967523,1783082363000,-426.26,0.00025308,2]
[426967524,1783082448000,345.86,0.00029111,120]
[426967525,1783082737000,179.00953779,0.0001,30]
[426967526,1783082751000,276.67,0.00029111,120]
[426967527,1783082783000,346.06521,0.00028666,120]
[426967528,1783082821000,173.032605,0.00028666,120]
[426967530,1783082829000,-216.8271932,0.00025308,2]
[426967533,1783082829000,-165.234187,0.00026127,2]
[426967529,1783082829000,-11.7765018,0.00025308,2]
[426967531,1783082829000,-197.928303,0.00025319,2]
[426967532,1783082829000,-411.16414499,0.00025882,7]
[426967535,1783082829000,-165.234187,0.00026127,15]
[426967540,1783082829000,-165.234187,0.00026127,50]
[426967536,1783082829000,-165.234187,0.00026127,22]
[426967539,1783082829000,-165.234187,0.00026127,43]
[426967538,1783082829000,-165.234187,0.00026127,36]
[426967537,1783082829000,-165.234187,0.00026127,29]
[426967541,1783082829000,-102.48232396,0.00026127,57]
[426967534,1783082829000,-165.234187,0.00026127,8]
[426967542,1783082864000,531.206247,0.0002868,120]
[426967543,1783082869000,1077.81343688,0.000178,30]
[426967544,1783082887000,1961.50228995,0.000125,2]
[426967546,1783082905000,4242.23642087,0.00015,2]
[426967547,1783082909000,6229.65444274,0.00015,2]
[426967549,1783082917000,-4365.72426064,0.0002,30]
[426967548,1783082917000,-3866.6551435,0.0002,30]
[426967550,1783082918000,-169.291983,0.0002,30]
[426967551,1783082920000,12448.68176228,0.00012,2]
[426967553,1783082923000,163.1,0.00015,30]
[426967554,1783082925000,6115.28298327,0.000168,30]
[426967555,1783082929000,107677.74046539,0.00019279,30]
[426967556,1783082951000,-2976.26178878,0.0002,30]
[426967558,1783082954000,-19020.17293828,0.000212,30]
[426967557,1783082954000,-3681.62036627,0.0002,30]
[426967560,1783082954000,-173.078169,0.0002551,2]
[426967559,1783082954000,-1284.40143039,0.00025,7]
[426967562,1783082954000,-173.078169,0.0002551,35]
[426967561,1783082954000,-173.078169,0.0002551,18]
[426967563,1783082954000,-151.71771312,0.0002551,52]
[426967568,1783082973000,-173.078169,0.0002551,119]
[426967569,1783082973000,-231.08574495,0.00025788,7]
[426967570,1783082973000,-605.66653155,0.00026,30]
[426967566,1783082973000,-173.078169,0.0002551,86]
[426967567,1783082973000,-173.078169,0.0002551,103]
[426967564,1783082973000,-21.36045588,0.0002551,52]
[426967565,1783082973000,-173.078169,0.0002551,69]
[426967634,1783083032000,-495.51,0.0002699,3]
[426967636,1783083032000,-590.00133555,0.00026995,2]
[426967633,1783083032000,-165.16,0.0002699,3]
[426967629,1783083032000,-1022.44526199,0.00026,30]
[426967635,1783083032000,-590.00133555,0.00026995,2]
[426967630,1783083032000,-687.56330572,0.00026186,2]
[426967632,1783083032000,-330.32,0.0002699,3]
[426967638,1783083032000,-590.00133555,0.00026995,2]
[426967631,1783083032000,-411.16414499,0.00026622,7]
[426967640,1783083032000,-590.00133555,0.00026995,2]
[426967637,1783083032000,-590.00133555,0.00026995,2]
[426967642,1783083032000,-590.00133555,0.00026995,2]
[426967650,1783083032000,-590.00133555,0.00026995,2]
[426967648,1783083032000,-590.00133555,0.00026995,2]
[426967649,1783083032000,-590.00133555,0.00026995,2]
[426967641,1783083032000,-590.00133555,0.00026995,2]
[426967639,1783083032000,-590.00133555,0.00026995,2]
[426967647,1783083032000,-590.00133555,0.00026995,2]
[426967644,1783083032000,-590.00133555,0.00026995,2]
[426967646,1783083032000,-590.00133555,0.00026995,2]
[426967643,1783083032000,-590.00133555,0.00026995,2]
[426967645,1783083032000,-590.00133555,0.00026995,2]
[426967652,1783083033000,-590.00133555,0.00026995,2]
[426967653,1783083033000,-627.54687509,0.00026995,2]
[426967651,1783083033000,-590.00133555,0.00026995,2]
[426967654,1783083033000,-627.54687509,0.00026995,2]
[426967657,1783083033000,-138.15369721,0.00026995,2]
[426967655,1783083033000,-500.85279037,0.00026995,2]
[426967656,1783083033000,-126.69408472,0.00026995,2]
[426967852,1783083309000,-150.361,0.00022,2]
[426967853,1783083320000,-151.1256635,0.00022838,2]
[426967854,1783083323000,2391.0,0.000195,30]
[426967855,1783083337000,10969.765786,0.0002868,120]
[426967856,1783083345000,221.34,0.00029104,120]
[426967859,1783083373000,-455.97613708,0.0002388,2]
[426967860,1783083382000,602.770862,0.0002868,120]
[426967861,1783083383000,430.89278547,0.00029104,120]
[426967862,1783083407000,2392.0,0.000195,30]
[426967863,1783083427000,-162.88,0.00022,2]
[426967864,1783083457000,190.61864,0.00028667,120]
[426967867,1783083650000,177.09,0.00029104,120]
[426967876,1783084051000,-165.04066043,0.00025282,7]
[426967877,1783084051000,-929.67754617,0.00025308,2]
[426967875,1783084051000,-164.40136758,0.00024995,2]
[426967874,1783084051000,-6.12,0.00022,2]
[426967878,1783084055000,813.92169419,0.000195,30]
[426967880,1783084084000,5052.9170337,0.0001,2]
[426967882,1783084145000,994.83858242,0.0001,2]
[426967890,1783084174000,-551.62628896,0.0002546,2]
[426967889,1783084174000,-179.7109413,0.00025367,2]
[426967911,1783084232000,-500.0,0.00025557,2]
[426967909,1783084232000,-219.08953673,0.00025557,2]
[426967914,1783084232000,-191.42285163,0.00025557,2]
[426967904,1783084232000,-197.9283043,0.00025547,2]
[426967916,1783084232000,-2437.71831577,0.00025558,2]
[426967902,1783084232000,-4761.89044154,0.0002546,2]
[426967906,1783084232000,-280.91046327,0.00025557,2]
[426967912,1783084232000,-500.0,0.00025557,2]
[426968453,1783084239000,-199.388035,0.00025566,2]
[426968451,1783084239000,-111.12296713,0.00025558,2]
[426968455,1783084239000,-406.64547787,0.00025877,2]
[426969020,1783084244000,-60.74003651,0.00026688,2]
[426969354,1783084248000,-151.0,0.00026734,2]
[426969355,1783084248000,-160.0,0.00026849,2]
[426969353,1783084248000,-122.05996349,0.00026688,2]
[426969356,1783084248000,-2065.30291632,0.00026899,2]
[426969357,1783084248000,-140.58217491,0.00026899,2]
[426969358,1783084253000,3777.372178,0.0002868,120]
[426969359,1783084297000,164.6792,0.00021723,30]
[426969360,1783084331000,621.162252,0.0002868,120]
[426969362,1783084427000,746.26247986,0.000269,120]
[426969393,1783084931000,3061.53,0.00029104,120]
[426969396,1783085185000,641.440558,0.00028522,120]
[426969397,1783085195000,1008.24648,0.00029104,120]
[426969405,1783085334000,282.588592,0.00028522,120]
[426969407,1783085357000,-151.0,0.00022,2]
[426969410,1783085357000,-298.47998736,0.00022466,2]
[426969408,1783085357000,-164.46565798,0.0002244,7]
[426969411,1783085357000,-246.69848701,0.0002376,7]
[426969413,1783085357000,-119.39505873,0.00024893,2]
[426969412,1783085357000,-168.04,0.00024486,2]
[426969409,1783085357000,-165.9882034,0.00022466,2]
[426969417,1783085422000,200.0,0.000219,120]
[426969466,1783085431000,-145.87543873,0.00024893,2]
[426969484,1783085431000,-1132.63682436,0.000269,2]
[426969481,1783085431000,-388.03135519,0.000269,2]
[426969470,1783085431000,-1491.93,0.00025294,2]
[426969480,1783085431000,-160.0,0.00026899,2]
[426969478,1783085431000,-155.76396271,0.0002678,2]
[426969476,1783085431000,-187.9358724,0.00026202,2]
[426969474,1783085431000,-151.0,0.00025912,2]
[426969468,1783085431000,-235.666062,0.00025248,2]
[426969471,1783085431000,-151.0,0.00025912,2]
[426970382,1783085449000,-2120.23743999,0.000269,2]
[426970381,1783085449000,-163.0,0.00026,2]
[426970383,1783085449000,-281.14376374,0.000269,2]
[426970384,1783085567000,-3745.29169894,0.000269,2]
[426970385,1783085723000,1600.540599,0.00028525,120]
[426970388,1783085798000,186.17470667,0.0001,2]
[426970389,1783085799000,2347.863411,0.00028525,120]
[426970390,1783085859000,179.00953779,0.0001,2]
[426970391,1783085895000,-199.04632641,0.00023286,2]
[426970392,1783085982000,-500.0,0.00024893,7]
[426970397,1783086178000,190.198947,0.00028525,120]
[426970403,1783086429000,-206.97373885,0.00025645,2]
[426970400,1783086429000,-41.93158005,0.00024893,7]
[426970402,1783086429000,-287.27154303,0.00025645,2]
[426970401,1783086429000,-159.59530168,0.00025645,2]
[426970405,1783086446000,-163.18772314,0.00025645,2]
[426970406,1783086469000,14075.47908401,0.0002688,120]
[426970407,1783086490000,-173.18188097,0.00021798,30]
[426970409,1783086490000,396.25,0.00016,7]
[426970408,1783086490000,396.25,0.00015863,7]
[426970410,1783086495000,265.08352202,0.00015,2]
[426970430,1783086530000,285.86101947,0.00019279,30]
[426970431,1783086531000,669.56444,0.0002688,120]
[426970432,1783086534000,271.45618168,0.00029107,120]
[426970438,1783086547000,-500.0,0.00020999,2]
[426970441,1783086547000,-500.0,0.00020999,2]
[426970439,1783086547000,-500.0,0.00020999,2]
[426970440,1783086547000,-500.0,0.00020999,2]
[426970436,1783086547000,-500.0,0.00020999,2]
[426970434,1783086547000,-796.51025489,0.00018,2]
[426970435,1783086547000,-722.73151572,0.00019,2]
[426970444,1783086547000,-337.7106198,0.00020999,2]
[426970437,1783086547000,-192.70431037,0.00020999,2]
[426970443,1783086547000,-500.0,0.00020999,2]
[426970450,1783086547000,-500.0,0.00020999,2]
[426970451,1783086547000,-372.14851994,0.00020999,2]
[426970447,1783086547000,-500.0,0.00020999,2]
[426970448,1783086547000,-500.0,0.00020999,2]
[426970442,1783086547000,-500.0,0.00020999,2]
[426970449,1783086547000,-500.0,0.00020999,2]
[426970446,1783086547000,-168.77872953,0.00020999,2]
[426970445,1783086547000,-500.0,0.00020999,2]
[426970452,1783086547000,-8230.40756317,0.00021,2]
[426970457,1783086550000,-159.4064624,0.00024363,2]
[426970456,1783086550000,-346.46194958,0.0002356,2]
[426970455,1783086550000,-151.0,0.00021144,2]
[426970454,1783086550000,-165.0,0.00021,2]
[426970453,1783086550000,-35.93317984,0.00021,2]
[426970458,1783086564000,-637.77206951,0.00024363,2]
[426970461,1783086564000,-348.18820869,0.00024363,2]
[426970459,1783086564000,-195.18057744,0.00024363,2]
[426970463,1783086564000,-167.14962583,0.00024561,2]
[426970464,1783086564000,-828.34931826,0.0002465,2]
[426970460,1783086564000,-223.06351708,0.00024363,2]
[426970462,1783086564000,-157.06148003,0.00024561,2]
[426970465,1783086570000,200.0,0.0002825,120]
[426970467,1783086574000,790.436,0.000269,120]
[426970466,1783086574000,500.0,0.000269,120]
[426970473,1783086582000,1000.0,0.0002749,120]
[426970472,1783086582000,1000.0,0.0002749,120]
[426970471,1783086582000,1000.0,0.0002749,120]
[426970470,1783086582000,1000.0,0.0002749,120]
[426970469,1783086582000,1000.0,0.0002749,120]
[426970468,1783086582000,1000.0,0.0002749,120]
[426970476,1783086583000,1000.0,0.0002749,120]
[426970474,1783086583000,1000.0,0.0002749,120]
[426970475,1783086583000,1000.0,0.0002749,120]
[426970477,1783086583000,1000.0,0.0002749,120]
[426970479,1783086583000,1000.0,0.0002749,120]
[426970480,1783086583000,1000.0,0.0002749,120]
[426970481,1783086583000,1000.0,0.0002749,120]
[426970482,1783086583000,1000.0,0.0002749,120]
[426970478,1783086583000,1000.0,0.0002749,120]
[426970484,1783086584000,301.90928213,0.0002749,120]
[426970483,1783086584000,1000.0,0.0002749,120]
[426970485,1783086586000,22964.10895079,0.0002688,120]
[426970515,1783086632000,-1949.4546763,0.0002465,2]
[426970516,1783086632000,-279.72532659,0.00024893,7]
[426970517,1783086632000,-314.12296005,0.00024997,2]
[426970518,1783086632000,-334.29925166,0.00024997,2]
[426970522,1783086632000,-1470.04698373,0.00025,2]
[426970520,1783086632000,-590.81200729,0.00025,3]
[426970519,1783086632000,-718.782818,0.00025,7]
[426970521,1783086632000,-662.97784545,0.00025,2]
[426970523,1783086636000,248.359747,0.0002842,120]
[426970601,1783086638000,-1762.168342,0.00025291,2]
[426970616,1783086638000,-494.82506926,0.00025469,3]
[426970619,1783086638000,-396.69334637,0.00025626,2]
[426970593,1783086638000,-7489.84571889,0.00025291,2]
[426970603,1783086638000,-279.72532659,0.00025391,7]
[426970622,1783086638000,-155.76396271,0.00025808,2]
[426970594,1783086638000,-1762.168342,0.00025291,2]
[426970609,1783086638000,-1762.168342,0.00025391,2]
[426970599,1783086638000,-1762.168342,0.00025291,2]
[426970591,1783086638000,-3124.0,0.00025,2]
[426970598,1783086638000,-151.0,0.00025291,2]
[426970615,1783086638000,-1762.168342,0.00025391,2]
[426970596,1783086638000,-1762.168342,0.00025291,2]
[426970613,1783086638000,-1762.168342,0.00025391,2]
[426970605,1783086638000,-5545.58046981,0.00025391,2]
[426970607,1783086638000,-1762.168342,0.00025391,2]
[426970589,1783086638000,-1893.916382,0.00025,2]
[426970557,1783086638000,-293.40491456,0.00025,2]
[426970611,1783086638000,-151.0,0.00025391,2]
[426970626,1783086638000,-188.73382549,0.00025853,2]
[426970633,1783086638000,-1762.168342,0.00025953,2]
[426970636,1783086638000,-1762.168342,0.00025953,2]
[426970624,1783086638000,-187.183544,0.00025809,2]
[426970655,1783086638000,-1762.168342,0.00025953,2]
[426970654,1783086638000,-1762.168342,0.00025953,2]
[426970663,1783086638000,-4725.44647279,0.00026,30]
[426970659,1783086638000,-500.0,0.00025953,2]
[426970657,1783086638000,-1762.168345,0.00025953,2]
[426970661,1783086638000,-2312.08313,0.00025954,2]
[426970652,1783086638000,-1762.168342,0.00025953,2]
[426970650,1783086638000,-1762.168342,0.00025953,2]
[426970665,1783086638000,-188.73382546,0.00026115,2]
[426970648,1783086638000,-185.049913,0.00025953,2]
[426970644,1783086638000,-151.0,0.00025953,2]
[426970642,1783086638000,-151.0,0.00025953,2]
[426970640,1783086638000,-1762.168342,0.00025953,2]
[426970635,1783086638000,-1762.168342,0.00025953,2]
[426970638,1783086638000,-1762.168342,0.00025953,2]
[426970631,1783086638000,-1762.168342,0.00025953,2]
[426970629,1783086638000,-165.0,0.0002594,2]
[426970627,1783086638000,-1101.8877704,0.0002593,2]
[426970646,1783086638000,-1762.168342,0.00025953,2]
[426970731,1783086639000,-250.003242,0.00026882,2]
[426970728,1783086639000,-250.003242,0.00026882,2]
[426970705,1783086639000,-151.0,0.00026882,2]
[426970725,1783086639000,-250.003242,0.00026882,2]
[426970710,1783086639000,-250.003242,0.00026882,2]
[426970718,1783086639000,-151.0,0.00026882,2]
[426970714,1783086639000,-250.003242,0.00026882,2]
[426970733,1783086639000,-250.003242,0.00026882,2]
[426970735,1783086639000,-250.003242,0.00026882,2]
[426970716,1783086639000,-250.003242,0.00026882,2]
[426970723,1783086639000,-250.003242,0.00026882,2]
[426970722,1783086639000,-250.003242,0.00026882,2]
[426970737,1783086639000,-250.003242,0.00026882,2]
[426970741,1783086639000,-250.003242,0.00026882,2]
[426970756,1783086639000,-279.72532659,0.00026884,7]
[426970742,1783086639000,-250.003242,0.00026882,2]
[426970709,1783086639000,-151.0,0.00026882,2]
[426970720,1783086639000,-186.031812,0.00026882,2]
[426970712,1783086639000,-151.0,0.00026882,2]
[426970681,1783086639000,-151.0,0.00026881,2]
[426970701,1783086639000,-151.0,0.00026882,2]
[426970669,1783086639000,-623.63150924,0.00026202,2]
[426970667,1783086639000,-279.72532659,0.00026138,7]
[426970672,1783086639000,-188.73382546,0.00026377,2]
[426970685,1783086639000,-151.0,0.00026881,2]
[426970680,1783086639000,-291.261555,0.00026881,2]
[426970671,1783086639000,-500.0,0.00026227,2]
[426970676,1783086639000,-611.44978626,0.00026501,2]
[426970674,1783086639000,-160.0,0.00026498,3]
[426970695,1783086639000,-160.0,0.00026882,2]
[426970678,1783086639000,-188.73382546,0.00026638,2]
[426970744,1783086639000,-250.003242,0.00026882,2]
[426970683,1783086639000,-151.0,0.00026881,2]
[426970689,1783086639000,-151.0,0.00026881,2]
[426970691,1783086639000,-151.0,0.00026881,2]
[426970693,1783086639000,-224.448337,0.00026881,2]
[426970707,1783086639000,-250.003242,0.00026882,2]
[426970703,1783086639000,-250.003242,0.00026882,2]
[426970699,1783086639000,-154.61353,0.00026882,2]
[426970687,1783086639000,-151.0,0.00026881,2]
[426970739,1783086639000,-250.003242,0.00026882,2]
[426970748,1783086639000,-250.003242,0.00026882,2]
[426970755,1783086639000,-174.95881057,0.00026883,2]
[426970800,1783086639000,-206.66432496,0.00026995,2]
[426970790,1783086639000,-267.02,0.0002699,3]
[426970802,1783086639000,-371.99578493,0.00026995,2]
[426970804,1783086639000,-661.32583987,0.00026995,2]
[426970806,1783086639000,-393.54907872,0.00026995,2]
[426970746,1783086639000,-250.003242,0.00026882,2]
[426970811,1783086639000,-227.48151589,0.00026995,2]
[426970809,1783086639000,-1032.28830318,0.00026995,2]
[426970798,1783086639000,-1077.4618121,0.00026995,2]
[426970813,1783086639000,-2421.86478815,0.00026995,2]
[426970819,1783086639000,-161.79017311,0.00027,3]
[426970817,1783086639000,-265636.98469556,0.00027,2]
[426970815,1783086639000,-449.77037568,0.00026995,2]
[426970823,1783086639000,-169.53868699,0.00027397,7]
[426970827,1783086639000,-359.52,0.00027411,2]
[426970829,1783086639000,-7489.84571882,0.00027412,2]
[426970831,1783086639000,-300.0,0.00027499,3]
[426970833,1783086639000,-181240.78532535,0.000275,2]
[426970821,1783086639000,-183.53673075,0.00027397,30]
[426970794,1783086639000,-336.70681628,0.00026995,2]
[426970807,1783086639000,-1683.53408141,0.00026995,2]
[426970796,1783086639000,-606.07226931,0.00026995,2]
[426970753,1783086639000,-151.0,0.00026882,2]
[426970792,1783086639000,-801.08,0.0002699,3]
[426970758,1783086639000,-500.0,0.00026897,2]
[426970764,1783086639000,-168.375117,0.00026899,2]
[426970762,1783086639000,-225.263791,0.00026899,2]
[426970780,1783086639000,-322.72,0.0002699,3]
[426970766,1783086639000,-160.0,0.000269,2]
[426970767,1783086639000,-188.73382546,0.000269,2]
[426970773,1783086639000,-165.0,0.0002698,2]
[426970751,1783086639000,-250.003242,0.00026882,2]
[426970771,1783086639000,-427.10143175,0.00026979,2]
[426970769,1783086639000,-1009.02307622,0.00026964,2]
[426970760,1783086639000,-500.0,0.00026898,2]
[426970782,1783086639000,-161.36,0.0002699,3]
[426970778,1783086639000,-184.68634759,0.00026985,2]
[426970788,1783086639000,-465.34,0.0002699,3]
[426970786,1783086639000,-930.67,0.0002699,3]
[426970784,1783086639000,-484.12,0.0002699,3]
[426970776,1783086639000,-500.0,0.00026984,2]
[426970899,1783086643000,-281.14376374,0.000275,2]
[426970898,1783086643000,-40.81310781,0.000275,2]
[426970907,1783086649000,-322.2,0.00026882,2]
[426970908,1783086649000,-93.319,0.00026899,2]
[426970922,1783086650000,-283.99756855,0.000275,2]
[426970921,1783086650000,-350.1744615,0.000275,2]
[426970916,1783086650000,-142.771,0.00026899,2]
[426970917,1783086650000,-9500.44170667,0.000275,2]
[426970918,1783086650000,-456.42165866,0.000275,2]
[426970923,1783086680000,274.89,0.00016,7]
[426970926,1783086692000,1828.18,0.00015863,7]
[426970925,1783086692000,1653.41690478,0.00016,7]
[426970924,1783086692000,174.76309522,0.00016,7]
[426970927,1783086716000,2306.46726,0.00028667,120]
[426970928,1783086794000,202.593801,0.00028525,120]
[426970930,1783086895000,1279.73,0.00016,7]
[426970931,1783086895000,1279.73,0.00015863,7]
[426970937,1783087116000,-500.0,0.00019363,7]
[426970938,1783087127000,-395.81,0.00019363,7]
[426970939,1783087180000,-500.0,0.000195,7]
[426970940,1783087195000,-379.49,0.000195,7]
[426970941,1783087291000,-16.32,0.000195,7]
[426970942,1783087308000,-151.01285617,0.0002,2]
[426970943,1783087325000,-627.06,0.00019363,7]
[426970944,1783087341000,-627.06,0.000195,7]
[426970949,1783087541000,-467.0,0.000195,7]
[426970948,1783087541000,-533.0,0.00019363,7]
[426970952,1783087588000,-66.0,0.000195,7]
[426970953,1783087599000,251.25772,0.0002793,120]
[426970963,1783087643000,-157.2757593,0.00022109,2]
[426970962,1783087643000,-168.0,0.00022,2]
[426970967,1783087680000,357.900091,0.0002793,120]
[426970972,1783087716000,373.1,0.00019363,7]
[426970973,1783087716000,178.950046,0.0002793,120]
[426970974,1783087716000,59.031,0.000195,7]
[426970986,1783087745000,-1182.64081702,0.00023205,2]
[426970984,1783087745000,-266.418299,0.00022418,4]
[426970985,1783087745000,-160.0,0.00023174,2]
[426970983,1783087745000,-189.179025,0.00022356,2]
[426970981,1783087745000,-167.0,0.0002215,2]
[426970982,1783087745000,-239.44301,0.00022276,2]
[426970980,1783087745000,-868.0777116,0.00022145,2]
[426970979,1783087745000,-92.7242407,0.00022109,2]
[426970977,1783087745000,-314.069,0.000195,7]
[426970978,1783087745000,-168.0,0.00022,2]
[426970987,1783087758000,190.771923,0.0002793,120]
[426971001,1783087764000,-615.80165393,0.00023205,2]
[426971004,1783087764000,-163.818793,0.00023205,20]
[426971002,1783087764000,-163.818793,0.00023205,2]
[426971005,1783087764000,-163.818793,0.00023205,29]
[426971008,1783087764000,-163.818793,0.00023205,56]
[426971006,1783087764000,-163.818793,0.00023205,38]
[426971007,1783087764000,-163.818793,0.00023205,47]
[426971009,1783087764000,-135.44447216,0.00023205,65]
[426971003,1783087764000,-163.818793,0.00023205,11]
[426971012,1783087771000,-21.19212194,0.00023205,83]
[426971010,1783087771000,-28.37432084,0.00023205,65]
[426971011,1783087771000,-163.818793,0.00023205,74]
[426971070,1783087832000,-191.49731903,0.00019724,30]
[426971071,1783087832000,-2050.16739244,0.0002246,2]
[426971462,1783087842000,-1000.0,0.0002246,2]
[426971494,1783087843000,-1126.56844937,0.00023363,2]
[426971503,1783087843000,-1126.56844937,0.00023363,2]
[426971495,1783087843000,-1126.56844937,0.00023363,2]
[426971502,1783087843000,-1126.56844937,0.00023363,2]
[426971479,1783087843000,-500.0,0.00023362,2]
[426971491,1783087843000,-500.0,0.00023362,2]
[426971492,1783087843000,-1126.56844937,0.00023363,2]
[426971486,1783087843000,-500.0,0.00023362,2]
[426971493,1783087843000,-415.16811987,0.00023363,2]
[426971501,1783087843000,-1126.56844937,0.00023363,2]
[426971498,1783087843000,-1126.56844937,0.00023363,2]
[426971508,1783087843000,-1126.56844937,0.00023363,2]
[426971499,1783087843000,-1126.56844937,0.00023363,2]
[426971496,1783087843000,-1126.56844937,0.00023363,2]
[426971497,1783087843000,-1126.56844937,0.00023363,2]
[426971506,1783087843000,-1126.56844937,0.00023363,2]
[426971509,1783087843000,-1126.56844937,0.00023363,2]
[426971505,1783087843000,-1126.56844937,0.00023363,2]
[426971507,1783087843000,-1126.56844937,0.00023363,2]
[426971510,1783087843000,-2242.5860649,0.00023364,2]